bitfinex-derivatives/quotes_BNBF0:USTF0_20241225
["timestamp","ask_amount","ask_price","bid_price","bid_amount"]
[1735086049853,2.42012728,697.47,695.64,0.28750503]
[1735086050047,0.2867589,697.45,695.64,0.28750503]
[1735086050248,2.42012728,697.44,695.64,0.28750503]
[1735086050448,0.28677124,697.42,695.64,0.28750503]
[1735086050653,2.42012728,697.41,695.64,0.28750503]
[1735086050852,0.28678357,697.39,695.64,0.28750503]
[1735086051052,2.1562774,697.38,695.64,0.28750503]
[1735086051253,2.1562774,697.37,695.64,0.28750503]
[1735086051453,2.1562774,697.36,695.64,0.28750503]
[1735086051647,2.1562774,697.35,695.64,0.28750503]
[1735086051848,2.1562774,697.34,695.64,0.28750503]
[1735086052053,2.1562774,697.33,695.64,0.28750503]
[1735086052350,2.1562774,697.32,695.64,0.28750503]
[1735086052546,2.1562774,697.31,695.64,0.28750503]
[1735086052751,0.2868247,697.29,695.64,0.28750503]
[1735086053051,2.1562774,697.28,695.64,0.28750503]
[1735086053248,2.1562774,697.27,695.64,0.28750503]
[1735086053553,2.44337811,697.26,695.64,0.28750503]
[1735086053748,2.44338223,697.25,695.64,0.28750503]
[1735086053950,2.44338634,697.24,695.64,0.28750503]
[1735086054150,2.44339045,697.23,695.64,0.28750503]
[1735086054353,2.44339457,697.22,695.64,0.28750503]
[1735086054556,2.15654107,697.21,695.64,0.28750503]
[1735086054855,2.15654107,697.2,695.64,0.28750503]
[1735086055053,2.15654107,697.19,695.64,0.28750503]
[1735086055252,2.15654107,697.18,695.64,0.28750503]
[1735086055555,2.15654107,697.17,695.64,0.28750503]
[1735086055749,2.15654107,697.16,695.64,0.28750503]
[1735086055952,2.15654107,697.15,695.64,0.28750503]
[1735086056156,2.15654107,697.14,695.64,0.28750503]
[1735086056355,0.2868535,697.22,695.64,0.28750503]
[1735086056356,2.15654107,697.13,695.64,0.28750503]
[1735086056557,2.15650183,697.12,695.64,0.28750503]
[1735086056856,2.15650183,697.11,695.64,0.28750503]
[1735086057055,2.156385,697.1,695.64,0.28750503]
[1735086057252,2.156385,697.09,695.64,0.28750503]
[1735086057451,2.156385,697.08,695.64,0.28750503]
[1735086057651,2.156385,697.07,695.64,0.28750503]
[1735086057958,2.156385,697.06,695.64,0.28750503]
[1735086058156,2.156385,697.05,695.64,0.28750503]
[1735086058353,2.156385,697.04,695.64,0.28750503]
[1735086058556,0.2868535,697.22,695.64,0.28750503]
[1735086058557,2.156385,697.03,695.64,0.28750503]
[1735086058753,2.15619841,697.02,695.64,0.28750503]
[1735086059050,0.2868535,697.22,695.64,0.28750503]
[1735086059051,2.15619841,697.01,695.64,0.28750503]
[1735086059257,2.15619841,697.0,695.64,0.28750503]
[1735086059465,2.15619841,696.99,695.64,0.28750503]
[1735086059758,2.15594073,696.98,695.64,0.28750503]
[1735086059957,2.15594073,696.97,695.64,0.28750503]
[1735086060156,2.15594073,696.96,695.64,0.28750503]
[1735086060356,2.15594073,696.95,695.64,0.28750503]
[1735086060557,2.15594073,696.94,695.64,0.28750503]
[1735086060756,2.15594073,696.93,695.64,0.28750503]
[1735086060959,2.15594073,696.92,695.64,0.28750503]
[1735086061257,2.15594073,696.91,695.64,0.28750503]
[1735086061455,2.15594073,696.9,695.64,0.28750503]
[1735086061660,0.2868535,697.22,695.64,0.28750503]
[1735086061960,2.15619721,697.21,695.64,0.28750503]
[1735086062159,2.15619721,697.2,695.64,0.28750503]
[1735086062359,2.15619721,697.19,695.64,0.28750503]
[1735086062560,2.15619721,697.18,695.64,0.28750503]
[1735086062764,2.15619721,697.17,695.64,0.28750503]
[1735086062956,2.15619721,697.16,695.64,0.28750503]
[1735086063261,2.15619721,697.15,695.64,0.28750503]
[1735086063456,2.15619721,697.14,695.64,0.28750503]
[1735086063659,2.15619721,697.13,695.64,0.28750503]
[1735086063858,2.15619721,697.12,695.64,0.28750503]
[1735086064057,0.28689053,697.13,695.64,0.28750503]
[1735086064058,2.15619721,697.11,695.64,0.28750503]
[1735086064362,2.15619721,697.1,695.64,0.28750503]
[1735086064563,2.15619721,697.09,695.64,0.28750503]
[1735086064759,0.28689053,697.13,695.64,0.28750503]
[1735086064966,2.15772973,697.12,695.72,1.06664268]
[1735086065263,0.88127247,697.11,695.72,1.06664268]
[1735086065465,2.15763073,697.1,695.72,1.06664268]
[1735086065665,2.15763073,697.09,695.72,1.06664268]
[1735086065865,2.15763073,697.08,695.72,1.06664268]
[1735086066167,2.15763073,697.07,695.75,1.06664268]
[1735086066363,2.15763073,697.06,695.75,1.06664268]
[1735086066564,2.15763073,697.05,695.75,1.06664268]
[1735086066770,2.15763073,697.04,695.75,1.06664268]
[1735086067067,2.15763073,697.03,695.75,1.06664268]
[1735086067371,2.15763073,697.02,695.67,1.06664268]
[1735086067567,2.15763073,697.01,695.67,1.06664268]
[1735086067769,0.28689053,697.13,695.68,0.2874885]
[1735086068064,0.28689053,697.13,695.69,1.06664268]
[1735086068065,1.27655867,697.0,695.69,1.06664268]
[1735086068264,2.15796605,696.99,695.69,1.06664268]
[1735086068465,2.15796605,696.98,695.69,1.06664268]
[1735086068761,2.15796605,696.97,695.69,1.06664268]
[1735086068965,2.15796605,696.96,695.7,1.06664268]
[1735086069167,2.15796605,696.95,695.7,1.06664268]
[1735086069361,2.15796605,696.94,695.7,1.06664268]
[1735086069562,2.15796605,696.93,695.7,1.06664268]
[1735086069764,2.15796605,696.93,695.68,0.2874885]
[1735086069765,2.15796605,696.92,695.72,1.06664268]
[1735086069962,2.15796605,696.91,695.72,1.06664268]
[1735086070270,2.15796605,696.9,695.72,1.06664268]
[1735086070469,2.15796605,696.89,695.72,1.06664268]
[1735086070669,2.15796605,696.88,695.7,1.06664268]
[1735086070869,2.15796605,696.87,695.7,1.06664268]
[1735086071067,0.88140944,696.86,695.7,1.06664268]
[1735086071365,2.15748142,696.85,695.7,1.06664268]
[1735086071565,2.15748142,696.84,695.72,1.06664268]
[1735086071768,2.15748142,696.83,695.72,1.06664268]
[1735086071967,2.15748142,696.82,695.72,1.06664268]
[1735086072185,2.15748142,696.81,695.72,1.06664268]
[1735086072372,1.27655867,697.0,695.72,1.06664268]
[1735086072373,2.15748142,696.8,695.72,1.06664268]
[1735086072564,1.27607198,696.79,695.78,1.06664268]
[1735086072767,1.27655867,697.0,695.78,1.06664268]
[1735086072965,2.1573416,696.99,695.78,1.06664268]
[1735086073168,2.1573416,696.98,695.79,0.28744305]
[1735086073371,1.27655867,697.0,695.79,0.28744305]
[1735086073372,2.1573416,696.97,695.79,0.28744305]
[1735086073565,2.1573416,696.96,695.79,0.28744305]
[1735086073766,2.1573416,696.95,695.79,1.35408573]
[1735086073970,1.27611168,696.94,695.79,1.35408573]
[1735086074166,2.15720475,696.93,695.79,1.35408573]
[1735086074370,2.15720475,696.92,695.79,1.35408573]
[1735086074570,2.15703273,696.91,695.79,1.35408573]
[1735086074767,2.15703273,696.9,695.79,0.28744305]
[1735086075069,2.15703273,696.89,695.79,0.28744305]
[1735086075271,1.27655867,697.0,695.79,0.28744305]
[1735086075469,2.15684959,696.99,695.79,0.28744305]
[1735086075665,2.15684959,696.98,695.79,0.28744305]
[1735086075869,2.15684959,696.97,695.79,0.28744305]
[1735086076070,2.15684959,696.96,695.79,0.28744305]
[1735086076371,1.27655867,697.0,695.79,0.28744305]
[1735086076673,2.15632722,696.99,695.79,0.28744305]
[1735086076872,2.15632722,696.98,695.79,0.28744305]
[1735086077073,1.27553666,696.97,695.79,0.28744305]
[1735086077266,0.28689053,697.13,695.79,0.28744305]
[1735086077467,2.15578093,697.12,695.79,0.28744305]
[1735086077669,2.15578093,697.11,695.79,0.28744305]
[1735086077873,2.15578093,697.1,695.79,0.28744305]
[1735086078073,2.15578093,697.09,695.79,0.28744305]
[1735086078273,2.15578093,697.08,695.79,0.28744305]
[1735086078472,2.15578093,697.07,695.79,0.28744305]
[1735086078673,2.15578093,697.06,695.79,0.28744305]
[1735086078870,2.15578093,697.05,695.79,0.28744305]
[1735086079074,2.15578093,697.04,695.79,0.28744305]
[1735086079275,2.15578093,697.03,695.79,0.28744305]
[1735086079476,2.15578093,697.02,695.79,0.28744305]
[1735086079676,2.15578093,697.01,695.79,0.28744305]
[1735086079877,2.15578093,697.0,695.79,0.28744305]
[1735086080071,0.28689053,697.13,695.79,0.28744305]
[1735086080072,2.15497436,696.99,695.79,0.28744305]
[1735086080269,2.15497436,696.98,695.79,0.28744305]
[1735086080472,2.15497436,696.97,695.79,0.28744305]
[1735086080675,2.15497436,696.96,695.79,0.28744305]
[1735086080873,2.15497436,696.95,695.79,0.28744305]
[1735086081076,2.15497436,696.94,695.79,0.28744305]
[1735086081279,2.15497436,696.93,695.79,0.28744305]
[1735086081578,2.15497436,696.92,695.79,0.28744305]
[1735086081778,2.15497436,696.91,695.79,0.28744305]
[1735086081978,2.15497436,696.9,695.79,0.28744305]
[1735086082279,2.15497436,696.89,695.79,0.28744305]
[1735086082472,1.27446805,696.88,695.79,0.28744305]
[1735086082676,1.27446805,696.87,695.79,0.28744305]
[1735086082975,0.28689053,697.13,695.79,0.28744305]
[1735086083279,2.15598178,697.12,695.79,0.28744305]
[1735086083474,0.88059315,697.11,695.79,0.28744305]
[1735086083674,2.15590396,697.1,695.79,0.28744305]
[1735086083875,2.15590396,697.09,695.79,0.28744305]
[1735086084076,2.15590396,697.08,695.79,0.28744305]
[1735086084380,2.15590396,697.07,695.79,0.28744305]
[1735086084580,2.15590396,697.06,695.79,0.28744305]
[1735086084881,2.15590396,697.05,695.79,0.28744305]
[1735086085081,2.15590396,697.04,695.79,0.28744305]
[1735086085383,2.15590396,697.03,695.79,0.28744305]
[1735086085582,0.28689053,697.13,695.79,0.28744305]
[1735086085583,2.15590396,697.02,695.79,0.28744305]
[1735086085782,2.15590396,697.01,695.79,0.28744305]
[1735086085980,0.28689053,697.13,695.79,0.28744305]
[1735086085981,2.15590396,697.0,695.79,0.28744305]
[1735086086182,2.15590396,696.99,695.79,0.28744305]
[1735086086375,2.15590396,696.98,695.79,0.28744305]
[1735086086580,2.15590396,696.97,695.79,0.28744305]
[1735086086875,2.15590396,696.96,695.79,0.28744305]
[1735086087078,2.15590396,696.95,695.79,0.28744305]
[1735086087383,2.15590396,696.94,695.79,0.28744305]
[1735086087582,2.15590396,696.93,695.79,0.28744305]
[1735086087784,2.15590396,696.92,695.79,0.28744305]
[1735086087976,2.15590396,696.91,695.79,0.28744305]
[1735086088181,2.15590396,696.9,695.79,0.28744305]
[1735086088378,0.28689053,697.13,695.79,0.28744305]
[1735086088379,2.15590396,696.89,695.79,0.28744305]
[1735086088584,2.15590396,696.88,695.79,0.28744305]
[1735086088781,0.28689053,697.13,695.79,0.28744305]
[1735086088782,2.15590396,696.87,695.79,0.28744305]
[1735086088982,2.15590396,696.86,695.79,0.28744305]
[1735086089181,1.27531081,696.85,695.79,0.28744305]
[1735086089382,2.1564246,696.84,695.79,0.28744305]
[1735086089683,0.28689053,697.13,695.79,0.28744305]
[1735086089684,2.1564246,696.83,695.79,0.28744305]
[1735086089883,2.1564246,696.82,695.79,0.28744305]
[1735086090082,0.28689053,697.13,695.79,0.28744305]
[1735086090083,2.15657382,696.81,695.79,0.28744305]
[1735086090278,2.15657382,696.8,695.79,0.28744305]
[1735086090478,1.27531081,696.79,695.79,0.28744305]
[1735086090678,1.27531081,696.78,695.79,0.28744305]
[1735086090884,0.28689053,697.13,695.79,0.28744305]
[1735086091177,2.15811022,697.12,695.79,0.28744305]
[1735086091382,2.15811022,697.11,695.79,0.28744305]
[1735086091586,2.15811022,697.1,695.79,0.28744305]
[1735086091880,2.15811022,697.09,695.79,0.28744305]
[1735086092086,2.15811022,697.08,695.79,0.28744305]
[1735086092286,2.15828196,697.07,695.79,0.28744305]
[1735086092489,2.15828196,697.06,695.79,0.28744305]
[1735086092687,2.15828196,697.05,695.79,0.28744305]
[1735086092884,2.15841164,697.04,695.79,0.28744305]
[1735086093187,2.15841164,697.03,695.79,0.28744305]
[1735086093388,2.15841164,697.02,695.79,0.28744305]
[1735086093584,2.15841164,697.01,695.79,0.28744305]
[1735086093787,2.15841164,697.0,695.79,0.28744305]
[1735086094083,2.15841164,696.99,695.79,0.28744305]
[1735086094388,2.15841164,696.98,695.79,0.28744305]
[1735086094591,2.15841164,696.97,695.79,0.28744305]
[1735086094787,2.15841164,696.96,695.79,0.28744305]
[1735086094986,2.15841164,696.95,695.79,0.28744305]
[1735086095290,2.15841164,696.94,695.79,0.28744305]
[1735086095590,0.28689053,697.13,695.79,0.28744305]
[1735086095591,2.15921548,696.93,695.79,0.28744305]
[1735086095791,2.15921548,696.92,695.79,0.28744305]
[1735086096090,2.15921548,696.91,695.79,0.28744305]
[1735086096290,2.15921548,696.9,695.79,0.28744305]
[1735086096483,2.15921548,696.89,695.79,0.28744305]
[1735086096685,2.15921548,696.88,695.79,0.28744305]
[1735086096892,2.15921548,696.87,695.79,0.28744305]
[1735086097184,0.28689053,697.13,695.79,0.28744305]
[1735086097185,2.15921548,696.86,695.79,0.28744305]
[1735086097390,2.15921548,696.85,695.79,0.28744305]
[1735086097592,2.15921548,696.84,695.79,0.28744305]
[1735086097794,2.15921548,696.83,695.79,0.28744305]
[1735086097986,2.15921548,696.82,695.79,0.28744305]
[1735086098186,2.15921548,696.81,695.79,0.28744305]
[1735086098390,2.15950325,696.8,695.79,0.28744305]
[1735086098591,0.28689053,697.13,695.79,0.28744305]
[1735086098592,2.15950325,696.79,695.79,0.28744305]
[1735086098793,2.15950325,696.78,695.79,0.28744305]
[1735086098993,2.15950325,696.77,695.79,0.28744305]
[1735086099193,2.15950325,696.76,695.79,0.28744305]
[1735086099386,2.15950325,696.75,695.79,0.28744305]
[1735086099591,2.15950325,696.74,695.79,0.28744305]
[1735086099793,2.15950325,696.73,695.79,0.28744305]
[1735086099987,2.15950325,696.72,695.79,0.28744305]
[1735086100290,1.27758863,696.71,695.79,1.35408573]
[1735086100494,2.15958097,696.7,695.79,1.35408573]
[1735086100686,2.15955886,696.69,695.79,1.35408573]
[1735086100889,1.27758863,696.68,695.79,1.35408573]
[1735086101193,0.28689053,697.13,695.79,1.35408573]
[1735086101194,1.27758863,696.67,695.79,1.35408573]
[1735086101386,0.28689053,697.13,695.79,0.28744305]
[1735086101590,2.15937567,697.12,695.79,0.28744305]
[1735086101792,1.2773918,697.11,695.79,0.28744305]
[1735086101991,2.15921781,697.1,695.79,0.28744305]
[1735086102187,2.15921781,697.09,695.79,0.28744305]
[1735086102389,2.15921781,697.08,695.79,0.28744305]
[1735086102598,2.15921781,697.07,695.79,0.28744305]
[1735086102794,2.15921781,697.06,695.79,0.28744305]
[1735086102990,2.15921781,697.05,695.79,0.28744305]
[1735086103194,2.15921781,697.04,695.79,0.28744305]
[1735086103395,2.15921781,697.03,695.79,0.28744305]
[1735086103595,2.15921781,697.02,695.79,0.28744305]
[1735086103791,2.15921781,697.01,695.79,0.28744305]
[1735086103994,2.15921781,697.0,695.79,0.28744305]
[1735086104195,2.15921781,696.99,695.79,0.28744305]
[1735086104390,2.15921781,696.98,695.79,0.28744305]
[1735086104591,2.15921781,696.97,695.79,0.28744305]
[1735086104792,2.15921781,696.96,695.79,0.28744305]
[1735086104997,2.15921781,696.95,695.79,0.28744305]
[1735086105198,2.15921781,696.94,695.79,0.28744305]
[1735086105497,2.15921781,696.93,695.79,0.28744305]
[1735086105706,2.15921781,696.92,695.79,1.35408573]
[1735086105902,2.15921781,696.91,695.79,1.35408573]
[1735086106102,2.15921781,696.9,695.79,1.35408573]
[1735086106296,2.15921781,696.89,695.79,1.35408573]
[1735086106501,2.15921781,696.88,695.79,1.35408573]
[1735086106701,2.15921781,696.87,695.79,1.35408573]
[1735086107001,2.15921781,696.86,695.79,1.35408573]
[1735086107194,2.15921781,696.85,695.79,1.35408573]
[1735086107392,0.28689053,697.13,695.79,1.35408573]
[1735086107597,2.1598901,697.12,695.79,1.35408573]
[1735086107796,2.1598901,697.11,695.79,1.35408573]
[1735086108001,2.1598901,697.1,695.8,1.06664268]
[1735086108200,2.1598901,697.09,695.8,1.06664268]
[1735086108403,2.1598901,697.08,695.8,1.06664268]
[1735086108596,2.1598901,697.07,695.8,1.06664268]
[1735086108798,0.28689053,697.13,695.79,0.28744305]
[1735086108799,2.1598901,697.06,695.83,1.06664268]
[1735086109004,2.1598901,697.05,695.84,0.28742239]
[1735086109306,2.1598901,697.04,695.84,0.28742239]
[1735086109602,2.1598901,697.03,695.84,0.28742239]
[1735086109800,2.1598901,697.02,695.84,0.28742239]
[1735086110001,2.1598901,697.01,695.84,0.28742239]
[1735086110197,2.1598901,697.0,695.84,0.28742239]
[1735086110401,1.27770028,696.99,695.84,0.28742239]
[1735086110604,2.15996569,696.98,695.84,0.28742239]
[1735086110904,0.28689053,697.13,695.84,0.28742239]
[1735086111104,2.16005807,697.12,695.84,0.28742239]
[1735086111300,2.16005807,697.11,695.84,0.28742239]
[1735086111497,2.16005807,697.1,695.84,0.28742239]
[1735086111702,2.16005807,697.09,695.84,0.28742239]
[1735086111898,2.16005807,697.08,695.84,0.28742239]
[1735086112098,2.16005807,697.07,695.84,0.28742239]
[1735086112303,2.16005807,697.06,695.84,0.28742239]
[1735086112504,2.16005807,697.05,695.84,0.28742239]
[1735086112704,2.16005807,697.04,695.84,0.28742239]
[1735086112904,2.16005807,697.03,695.84,0.28742239]
[1735086113101,2.16005807,697.02,695.84,0.28742239]
[1735086113301,2.16005807,697.01,695.84,0.28742239]
[1735086113505,2.16009679,697.0,695.84,0.28742239]
[1735086113706,2.16009679,696.99,695.84,0.28742239]
[1735086113907,2.16009679,696.98,695.84,0.28742239]
[1735086114105,2.16009679,696.97,695.84,0.28742239]
[1735086114299,2.16009679,696.96,695.84,0.28742239]
[1735086114501,2.16009679,696.95,695.84,0.28742239]
[1735086114706,2.16009679,696.94,695.84,0.28742239]
[1735086114905,2.16009679,696.93,695.84,0.28742239]
[1735086115127,2.16009679,696.92,695.84,0.28742239]
[1735086115308,2.16009679,696.91,695.84,0.28742239]
[1735086115507,2.16009679,696.9,695.84,0.28742239]
[1735086115807,2.16009679,696.89,695.84,0.28742239]
[1735086116012,2.16006699,696.88,695.84,0.28742239]
[1735086116207,1.27784239,696.87,695.84,0.28742239]
[1735086116406,1.27784239,696.86,695.84,0.28742239]
[1735086116707,1.27767616,696.85,695.84,0.28742239]
[1735086117006,0.28689053,697.13,695.86,1.06664268]
[1735086117206,2.15985182,697.12,695.87,0.28741]
[1735086117408,2.15985182,697.11,695.87,0.28741]
[1735086117706,0.28689053,697.13,695.87,0.28741]
[1735086117707,2.15985182,697.1,695.87,0.28741]
[1735086117904,2.15985182,697.09,695.87,0.28741]
[1735086118103,0.28689053,697.13,695.87,0.28741]
[1735086118104,2.15985182,697.08,695.87,0.28741]
[1735086118303,2.15985182,697.07,695.87,0.28741]
[1735086118507,2.15985182,697.06,695.87,0.28741]
[1735086118707,2.15985182,697.05,695.87,0.28741]
[1735086119006,2.15985182,697.04,695.87,0.28741]
[1735086119202,2.15985182,697.03,695.87,0.28741]
[1735086119406,2.15985182,697.02,695.87,0.28741]
[1735086119601,0.28689053,697.13,695.87,0.28741]
[1735086119808,2.15966719,697.12,695.87,0.28741]
[1735086120012,2.15966719,697.11,695.87,0.28741]
[1735086120307,2.15966719,697.1,695.87,0.28741]
[1735086120506,2.15966719,697.09,695.87,0.28741]
[1735086120708,2.15966719,697.08,695.87,0.28741]
[1735086120908,0.28689053,697.13,695.87,0.28741]
[1735086120909,2.15966719,697.07,695.87,0.28741]
[1735086121109,2.15966719,697.06,695.87,0.28741]
[1735086121303,2.15966719,697.05,695.87,0.28741]
[1735086121503,2.15966719,697.04,695.87,0.28741]
[1735086121702,2.15932828,697.03,695.87,0.28741]
[1735086121907,2.15932828,697.02,695.87,0.28741]
[1735086122105,2.15932828,697.01,695.87,0.28741]
[1735086122319,2.15932828,697.0,695.87,0.28741]
[1735086122504,2.15932828,696.99,695.87,0.28741]
[1735086122709,2.15932828,696.98,695.87,0.28741]
[1735086122909,2.15932828,696.97,695.87,0.28741]
[1735086123114,2.15932828,696.96,695.87,0.28741]
[1735086123310,2.15932828,696.95,695.87,0.28741]
[1735086123506,2.15932828,696.94,695.87,0.28741]
[1735086123706,2.15932828,696.93,695.87,0.28741]
[1735086123916,2.15932828,696.92,695.87,0.28741]
[1735086124110,2.15932828,696.91,695.87,0.28741]
[1735086124306,2.15932828,696.9,695.87,0.28741]
[1735086124510,2.15932828,696.89,695.87,0.28741]
[1735086124706,2.15960378,696.88,695.87,0.28741]
[1735086124912,0.28689053,697.13,695.87,0.28741]
[1735086124913,2.15960378,696.87,695.87,0.28741]
[1735086125113,2.15960378,696.86,695.87,0.28741]
[1735086125314,2.15960378,696.85,695.87,0.28741]
[1735086125613,2.15960378,696.84,695.87,0.28741]
[1735086125812,2.15960378,696.83,695.87,0.28741]
[1735086126013,2.15960378,696.82,695.87,0.28741]
[1735086126216,0.28689053,697.13,695.87,0.28741]
[1735086126412,2.16039696,697.12,695.87,0.28741]
[1735086126611,2.16039696,697.11,695.87,0.28741]
[1735086126814,2.16039696,697.1,695.87,0.28741]
[1735086127108,2.16039696,697.09,695.87,0.28741]
[1735086127316,2.16039696,697.08,695.87,0.28741]
[1735086127616,0.88239328,697.07,695.87,0.28741]
[1735086127817,2.16043682,697.06,695.87,0.28741]
[1735086128013,2.16043682,697.05,695.87,0.28741]
[1735086128315,2.16066112,697.04,695.87,0.28741]
[1735086128629,2.16066112,697.03,695.87,0.28741]
[1735086128815,2.16066112,697.02,695.87,0.28741]
[1735086129011,2.16066112,697.01,695.87,0.28741]
[1735086129216,2.16066112,697.0,695.87,0.28741]
[1735086129412,2.16066112,696.99,695.87,1.35405268]
[1735086129616,0.28689053,697.13,695.87,1.35405268]
[1735086129617,2.16066112,696.98,695.87,1.35405268]
[1735086129912,0.28689053,697.13,695.87,1.35405268]
[1735086129913,2.16066112,696.97,695.87,1.35405268]
[1735086130114,2.16066112,696.96,695.87,1.35405268]
[1735086130418,2.16066112,696.95,695.89,1.06664268]
[1735086130619,2.16066112,696.94,695.89,1.06664268]
[1735086130914,2.16062205,696.93,695.89,1.06664268]
[1735086131118,2.16062205,696.92,695.89,1.06664268]
[1735086131319,2.16062205,696.91,695.89,1.06664268]
[1735086131517,0.28689053,697.13,695.87,0.28741]
[1735086131518,2.16062205,696.9,695.87,1.35405268]
[1735086131729,2.16062205,696.89,695.87,1.35405268]
[1735086131917,2.16062205,696.88,695.87,1.35405268]
[1735086132111,2.16062205,696.87,695.87,1.35405268]
[1735086132315,2.16062205,696.86,695.87,1.35405268]
[1735086132518,2.16062205,696.85,695.87,1.35405268]
[1735086132712,2.16062205,696.84,695.87,1.35405268]
[1735086132917,2.16062205,696.83,695.87,1.35405268]
[1735086133118,2.16062205,696.82,695.87,1.35405268]
[1735086133413,2.16062205,696.81,695.87,1.35405268]
[1735086133618,2.16062205,696.8,695.87,1.35405268]
[1735086133826,2.16062205,696.79,695.87,0.28741]
[1735086134013,2.16062205,696.78,695.87,0.28741]
[1735086134315,2.16062205,696.77,695.87,0.28741]
[1735086134519,2.16062205,696.76,695.87,0.28741]
[1735086134717,2.16062205,696.75,695.87,0.28741]
[1735086134918,0.28689053,697.13,695.87,0.28741]
[1735086134919,2.16062205,696.74,695.87,0.28741]
[1735086135117,2.16062205,696.73,695.87,0.28741]
[1735086135314,2.16062205,696.72,695.87,0.28741]
[1735086135519,2.16062205,696.71,695.87,0.28741]
[1735086135725,2.16062205,696.7,695.87,0.28741]
[1735086135918,2.16062205,696.69,695.87,0.28741]
[1735086136119,2.16062205,696.68,695.87,0.28741]
[1735086136320,2.16062205,696.67,695.87,0.28741]
[1735086136521,0.28689053,697.13,695.87,0.28741]
[1735086136723,2.15874745,697.12,695.87,0.28741]
[1735086136922,0.88174388,697.11,695.87,0.28741]
[1735086137120,2.15878646,697.1,695.87,0.28741]
[1735086137320,2.15878646,697.09,695.87,0.28741]
[1735086137521,0.28689053,697.13,695.87,0.28741]
[1735086137522,2.15878646,697.08,695.87,0.28741]
[1735086137718,2.15878646,697.07,695.87,0.28741]
[1735086137923,0.28689053,697.13,695.87,0.28741]
[1735086137924,2.15878646,697.06,695.87,0.28741]
[1735086138221,2.15878646,697.05,695.87,0.28741]
[1735086138418,0.28689053,697.13,695.87,0.28741]
[1735086138419,2.15878646,697.04,695.87,0.28741]
[1735086138618,2.15878646,697.03,695.87,0.28741]
[1735086138824,2.15878646,697.02,695.87,0.28741]
[1735086139021,2.15878646,697.01,695.87,0.28741]
[1735086139221,2.15878646,697.0,695.87,0.28741]
[1735086139421,2.15878646,696.99,695.87,0.28741]
[1735086139621,2.15878646,696.98,695.87,0.28741]
[1735086139820,2.15845245,696.97,695.87,0.28741]
[1735086140054,2.15845245,696.96,695.87,0.28741]
[1735086140225,2.15845245,696.95,695.87,0.28741]
[1735086140427,2.15845245,696.94,695.87,0.28741]
[1735086140627,2.15845245,696.93,695.87,0.28741]
[1735086140827,2.15845245,696.92,695.87,0.28741]
[1735086141131,2.15845245,696.91,695.87,0.28741]
[1735086141324,0.28689053,697.13,695.87,0.28741]
[1735086141325,2.15845245,696.9,695.87,0.28741]
[1735086141531,2.15845245,696.89,695.87,0.28741]
[1735086141731,2.15845245,696.88,695.87,0.28741]
[1735086141931,2.15845245,696.87,695.87,0.28741]
[1735086142133,2.15845245,696.86,695.87,0.28741]
[1735086142325,2.15845245,696.85,695.87,0.28741]
[1735086142525,0.28689053,697.13,695.87,0.28741]
[1735086142526,2.15845245,696.84,695.87,0.28741]
[1735086142835,2.15845245,696.83,695.87,0.28741]
[1735086143032,2.15845245,696.82,695.87,0.28741]
[1735086143233,2.15845245,696.81,695.87,0.28741]
[1735086143435,2.15845245,696.8,695.87,0.28741]
[1735086143732,2.15845245,696.79,695.87,0.28741]
[1735086143933,2.15845245,696.78,695.87,0.28741]
[1735086144132,2.15845245,696.77,695.87,0.28741]
[1735086144334,2.15845245,696.76,695.87,0.28741]
[1735086144535,2.15845245,696.75,695.87,0.28741]
[1735086144834,2.15845245,696.74,695.87,0.28741]
[1735086145030,2.15845245,696.73,695.87,0.28741]
[1735086145233,0.28689053,697.13,695.87,0.28741]
[1735086145234,2.15845245,696.72,695.87,0.28741]
[1735086145534,2.15845245,696.71,695.87,0.28741]
[1735086145836,2.15845245,696.7,695.87,0.28741]
[1735086146133,1.27670857,696.69,695.87,0.28741]
[1735086146334,1.27670857,696.68,695.87,0.28741]
[1735086146533,0.28689053,697.13,695.87,0.28741]
[1735086146733,2.15738101,697.12,695.87,0.28741]
[1735086147033,2.15738101,697.11,695.87,0.28741]
[1735086147334,2.15738101,697.1,695.87,0.28741]
[1735086147533,2.15738101,697.09,695.87,0.28741]
[1735086147833,2.15738101,697.08,695.87,0.28741]
[1735086148027,2.15738101,697.07,695.87,0.28741]
[1735086148232,2.15738101,697.06,695.87,0.28741]
[1735086148433,2.15738101,697.05,695.87,0.28741]
[1735086148630,2.15738101,697.04,695.87,0.28741]
[1735086148928,2.15754346,697.03,695.87,0.28741]
[1735086149135,2.15754346,697.02,695.87,0.28741]
[1735086149326,0.28689053,697.13,695.87,0.28741]
[1735086149532,2.15772168,697.12,695.87,0.28741]
[1735086149728,2.15772168,697.11,695.87,0.28741]
[1735086149933,2.15772168,697.1,695.87,0.28741]
[1735086150134,2.15772168,697.09,695.87,0.28741]
[1735086150335,2.15772168,697.08,695.87,0.28741]
[1735086150535,2.15772168,697.07,695.87,0.28741]
[1735086150834,2.15772168,697.06,695.87,0.28741]